bitfinex-derivatives/quotes_ETHF0:USTF0_20250918
["timestamp","ask_amount","ask_price","bid_price","bid_amount"]
[1758202494299,0.2978,4595.4,4595.3,3.2295]
[1758202494804,0.126,4595.5,4594.8,3.2078]
[1758202495003,0.2978,4595.4,4594.8,3.2078]
[1758202495302,0.159,4595.3,4594.8,3.2078]
[1758202495902,0.159,4595.3,4594.8,3.505]
[1758202496102,0.2978,4595.2,4594.8,3.505]
[1758202496396,0.2978,4595.2,4594.9,0.2972]
[1758202496601,0.2978,4595.4,4594.9,0.2972]
[1758202496799,0.226,4595.4,4594.9,0.2972]
[1758202497497,0.302,4595.3,4594.9,0.2972]
[1758202497698,0.302,4595.3,4594.8,3.5044]
[1758202497895,3.2078,4595.7,4594.9,4.21763]
[1758202498099,0.126,4597.0,4594.9,4.21763]
[1758202498100,0.428,4597.0,4595.6,0.2966]
[1758202498304,0.428,4597.0,4596.2,3.5044]
[1758202498305,0.302,4597.0,4596.2,3.5044]
[1758202499400,0.324,4596.3,4596.2,3.2078]
[1758202499705,0.022,4596.3,4596.2,3.5044]
[1758202500203,3.2078,4597.4,4596.3,0.2746]
[1758202500204,0.302,4597.3,4596.3,0.2746]
[1758202500407,0.54897202,4597.2,4596.3,0.2746]
[1758202500600,0.302,4596.9,4596.3,0.2746]
[1758202500907,0.302,4596.9,4596.2,3.2078]
[1758202501107,0.529,4596.9,4596.2,3.2078]
[1758202501299,0.302,4596.9,4596.2,3.2078]
[1758202501499,0.302,4596.9,4595.7,0.227]
[1758202501500,0.302,4596.4,4595.7,3.7094]
[1758202501902,0.302,4596.4,4595.7,3.4824]
[1758202502405,0.1186,4596.5,4595.7,3.2078]
[1758202502609,0.1186,4596.0,4595.7,3.2078]
[1758202503206,0.302,4595.9,4595.7,3.2078]
[1758202503403,0.302,4595.9,4595.2,3.4824]
[1758202503912,3.2078,4596.2,4595.3,0.2746]
[1758202504308,0.302,4596.1,4595.3,0.2746]
[1758202504507,0.1186,4596.0,4595.3,0.2746]
[1758202505508,0.1208,4595.5,4595.2,3.2078]
[1758202505713,0.3088,4595.4,4595.2,3.2078]
[1758202506011,0.1208,4595.5,4595.2,3.2078]
[1758202506211,0.227,4595.8,4595.3,0.275]
[1758202506414,0.227,4595.8,4595.2,3.2078]
[1758202506713,0.3088,4595.7,4595.3,0.275]
[1758202507112,0.227,4595.8,4595.3,0.275]
[1758202507301,0.227,4595.8,4595.2,3.2078]
[1758202507506,0.3088,4595.7,4595.2,3.2078]
[1758202508310,0.1186,4596.0,4595.2,3.2078]
[1758202508616,0.3088,4596.4,4595.8,3.2078]
[1758202510010,0.3088,4596.2,4595.8,3.2078]
[1758202510209,0.3456,4596.5,4595.1,3.2078]
[1758202510210,0.3088,4595.9,4595.1,3.2078]
[1758202510409,0.3088,4595.8,4595.1,3.2078]
[1758202510604,0.5358,4595.8,4595.1,3.2078]
[1758202510811,0.3088,4595.7,4595.1,3.2078]
[1758202511514,0.227,4595.7,4595.1,3.4828]
[1758202511710,0.227,4595.7,4595.1,3.2078]
[1758202511912,0.1208,4595.5,4595.1,3.2078]
[1758202512107,0.3088,4595.4,4594.7,0.275]
[1758202512308,3.2078,4596.1,4595.0,3.2078]
[1758202512511,0.3088,4597.2,4596.1,0.275]
[1758202512713,0.77677201,4596.9,4596.1,0.275]
[1758202512913,0.54977201,4596.8,4596.1,0.275]
[1758202513215,0.227,4596.9,4596.1,0.2967]
[1758202513415,0.54985106,4596.8,4596.1,0.2967]
[1758202513619,0.227,4596.9,4596.1,0.2967]
[1758202513820,0.54985184,4596.8,4596.1,0.2967]
[1758202514118,0.227,4596.9,4596.1,0.2967]
[1758202514318,0.54984991,4596.8,4596.1,0.2967]
[1758202514519,0.227,4596.9,4596.1,0.2967]
[1758202514719,0.54984275,4596.8,4596.1,0.2967]
[1758202514919,0.227,4596.9,4596.1,0.2967]
[1758202515219,0.54984274,4596.8,4596.1,0.2967]
[1758202515416,0.227,4597.0,4596.2,0.275]
[1758202515820,0.5358,4597.2,4596.2,0.275]
[1758202516016,0.3088,4596.9,4596.2,0.275]
[1758202516220,0.3088,4596.4,4596.1,0.0217]
[1758202516516,3.2078,4596.9,4596.2,0.275]
[1758202516822,0.85880632,4596.8,4596.2,0.275]
[1758202517021,0.55000632,4596.7,4596.2,0.275]
[1758202517221,0.55000632,4596.6,4596.2,0.275]
[1758202517516,0.4296,4597.0,4596.2,0.275]
[1758202517720,0.55026243,4596.9,4596.2,0.275]
[1758202517921,0.55026243,4596.8,4596.2,0.275]
[1758202518222,0.55026243,4596.7,4596.1,3.4828]
[1758202518415,0.3088,4596.6,4596.1,3.4828]
[1758202518619,0.3478,4597.0,4596.1,3.4828]
[1758202518827,0.3088,4596.8,4596.1,3.4828]
[1758202519027,0.55028621,4596.7,4596.1,3.4828]
[1758202519320,0.3088,4596.6,4596.2,0.0217]
[1758202519532,0.3088,4596.9,4596.6,0.275]
[1758202519822,0.227,4597.4,4596.6,0.275]
[1758202520129,0.55018201,4597.3,4596.6,0.275]
[1758202520326,0.227,4597.4,4596.6,0.275]
[1758202520522,0.5500423,4597.3,4596.6,0.275]
[1758202520721,3.6374,4597.5,4596.6,0.275]
[1758202521020,0.5500446,4597.4,4596.6,0.275]
[1758202521219,3.8644,4597.5,4596.6,0.275]
[1758202521419,0.54990698,4597.4,4596.6,0.275]
[1758202521620,3.8644,4597.5,4596.6,0.275]
[1758202521812,0.54990698,4597.4,4596.6,0.275]
[1758202522015,3.8644,4597.5,4596.6,0.275]
[1758202522215,0.54990684,4597.4,4596.6,0.275]
[1758202522419,3.8644,4597.5,4596.6,0.275]
[1758202522620,0.54978756,4597.4,4596.6,0.275]
[1758202522821,0.3088,4597.3,4596.6,0.275]
[1758202523616,0.3088,4597.5,4597.1,3.2078]
[1758202523915,0.6566,4598.0,4597.2,0.275]
[1758202524120,0.54960811,4597.9,4597.2,0.275]
[1758202524320,0.1208,4598.0,4597.7,3.2078]
[1758202524720,0.3088,4597.9,4597.7,3.2078]
[1758202524917,0.3088,4598.4,4597.8,0.275]
[1758202525217,0.1208,4598.0,4597.7,3.2078]
[1758202525723,0.3088,4597.9,4597.2,0.227]
[1758202525915,0.3088,4597.9,4597.0,3.4828]
[1758202526116,0.227,4597.9,4597.0,3.4828]
[1758202526316,0.1208,4598.0,4597.0,3.4828]
[1758202526522,0.227,4597.9,4597.0,3.4828]
[1758202526723,0.3088,4597.8,4597.0,3.4828]
[1758202528327,0.3088,4597.8,4597.0,3.2078]
[1758202528517,0.1208,4598.0,4597.8,0.275]
[1758202528723,0.519,4598.0,4597.9,0.2013]
[1758202529122,0.8278,4598.0,4597.9,0.2013]
[1758202530721,0.4296,4598.0,4597.9,0.6751]
[1758202530917,0.3088,4599.6,4599.0,0.275]
[1758202531116,0.3088,4599.6,4599.3,3.4828]
[1758202531825,0.7588,4599.4,4599.3,3.4828]
[1758202533028,0.45,4599.4,4599.3,3.4828]
[1758202533320,0.7588,4599.4,4599.3,3.2078]
[1758202533926,0.1208,4599.0,4598.9,0.0217]
[1758202534223,0.4296,4599.0,4598.9,0.0217]
[1758202535129,0.97934773,4599.0,4598.9,0.0217]
[1758202535923,1.20634773,4599.0,4598.9,0.0217]
[1758202536426,5.20634773,4599.0,4598.9,0.0217]
[1758202536623,0.1241,4598.0,4597.7,3.2078]
[1758202537032,0.2954,4597.9,4597.3,0.2744]
[1758202537422,0.2954,4597.9,4597.2,3.2078]
[1758202537930,0.1241,4597.5,4596.7,3.2078]
[1758202538229,0.2954,4596.9,4596.7,3.2078]
[1758202538431,0.1241,4597.0,4596.7,3.2078]
[1758202538626,0.1241,4596.5,4596.1,3.2078]
[1758202538925,0.1241,4597.0,4596.2,0.2744]
[1758202539131,0.122,4597.4,4596.9,3.2078]
[1758202539328,0.227,4597.9,4597.0,0.2744]
[1758202539530,0.1241,4598.0,4597.6,0.2744]
[1758202540030,0.2954,4597.9,4597.6,0.2744]
[1758202540225,0.1241,4598.0,4597.5,3.2078]
[1758202540423,0.2954,4597.9,4597.5,3.2078]
[1758202540817,0.1241,4598.0,4597.5,3.2078]
[1758202541118,0.1241,4598.0,4597.1,0.0217]
[1758202541119,0.2954,4597.9,4597.1,0.0217]
[1758202541921,0.2954,4597.4,4597.1,0.0217]
[1758202542122,0.5224,4597.4,4597.1,0.0217]
[1758202542329,0.1241,4597.0,4596.5,3.2078]
[1758202542624,0.2954,4596.8,4596.5,3.2078]
[1758202542927,0.2954,4596.6,4596.5,3.2078]
[1758202543229,0.84644324,4596.6,4596.5,3.2078]
[1758202543423,4.2954,4596.6,4596.5,3.2078]
[1758202543819,0.2954,4596.4,4595.7,3.2078]
[1758202544024,0.1241,4596.0,4595.2,3.2078]
[1758202544230,0.2954,4595.8,4595.2,3.2078]
[1758202544423,0.1241,4596.0,4595.2,3.2078]
[1758202544624,0.5224,4595.9,4595.2,3.2078]
[1758202545727,0.2954,4595.9,4595.2,3.2078]
[1758202545919,0.2954,4595.7,4595.3,0.2931]
[1758202546230,0.2954,4595.7,4594.9,0.0128]
[1758202546529,0.4195,4595.5,4594.9,0.0128]
[1758202547024,0.1241,4596.5,4595.0,0.2931]
[1758202547230,0.227,4596.4,4595.6,0.2931]
[1758202548332,0.4195,4596.5,4595.6,0.2931]
[1758202548532,0.227,4596.4,4595.6,0.2931]
[1758202548826,0.227,4596.3,4596.1,3.5009]
[1758202549132,0.1241,4596.5,4596.1,3.5009]
[1758202549133,0.3511,4596.5,4596.1,3.5009]
[1758202549330,0.2954,4596.4,4596.1,3.5009]
[1758202549929,0.2954,4596.3,4595.6,3.5009]
[1758202550130,3.2078,4596.7,4595.7,0.2931]
[1758202550326,0.5224,4596.9,4596.6,3.2078]
[1758202550632,0.2954,4597.3,4596.7,0.2931]
[1758202551429,3.3319,4597.5,4596.7,0.2931]
[1758202551732,0.1241,4598.5,4596.5,0.0843]
[1758202551733,0.4195,4598.5,4597.2,0.2931]
[1758202551931,3.2078,4598.7,4598.2,0.2931]
[1758202552130,3.2078,4598.7,4598.1,3.5009]
[1758202553840,3.5032,4598.7,4598.1,3.5009]
[1758202554238,0.2954,4598.7,4598.1,3.5009]
[1758202554839,0.5224,4598.7,4598.1,3.5009]
[1758202555136,0.2954,4598.6,4597.6,3.7279]
[1758202555332,0.227,4598.7,4597.6,3.5009]
[1758202555333,0.2954,4598.4,4597.6,3.5009]
[1758202555537,0.1241,4598.5,4597.6,3.2078]
[1758202556135,0.2954,4598.3,4597.6,3.2078]
[1758202556536,0.227,4598.4,4597.6,3.2078]
[1758202556537,0.2954,4597.9,4597.6,3.2078]
[1758202556837,0.227,4597.8,4597.6,3.2078]
[1758202557040,0.2954,4597.7,4597.6,3.2078]
[1758202557743,0.176,4597.8,4597.6,3.2078]
[1758202557940,0.176,4597.8,4597.6,3.5044]
[1758202558136,0.4901,4597.8,4597.6,3.5044]
[1758202558436,0.3141,4597.7,4597.6,3.2078]
[1758202559743,4.3141,4597.7,4597.6,3.2078]
[1758202559943,0.5411,4597.7,4597.6,3.2078]
[1758202560339,0.5411,4597.7,4596.9,0.0217]
[1758202560340,0.1163,4597.0,4596.9,0.0217]
[1758202560534,3.8652,4597.0,4596.9,0.0217]
[1758202560743,7.8652,4597.0,4596.9,0.0217]
[1758202561044,0.3141,4595.9,4595.3,3.2078]
[1758202561341,0.4304,4596.5,4595.9,0.2966]
[1758202561537,3.4348,4596.6,4595.9,0.2966]
[1758202561738,0.227,4596.8,4596.4,3.2078]
[1758202561939,0.227,4596.8,4596.5,0.2966]
[1758202562248,0.3141,4596.8,4596.5,0.2966]
[1758202562443,0.3141,4597.4,4596.5,0.2966]
[1758202562745,0.5411,4597.4,4596.5,0.2966]
[1758202562940,0.227,4597.7,4597.1,3.2078]
[1758202563139,3.4348,4597.9,4597.2,0.2966]
[1758202563542,3.2078,4597.9,4597.2,0.2966]
[1758202563948,0.3141,4597.8,4597.2,0.2966]
[1758202564547,3.2078,4597.9,4597.2,0.2966]
[1758202564744,0.227,4598.3,4597.8,3.2078]
[1758202564944,0.227,4598.3,4597.9,0.2966]
[1758202565245,0.5411,4598.3,4597.8,3.2078]
[1758202565443,0.3141,4598.3,4597.9,0.2966]
[1758202565746,0.2985,4598.7,4597.9,0.2966]
[1758202565940,0.227,4598.5,4597.9,0.2966]
[1758202566943,0.2985,4598.7,4597.9,0.2966]
[1758202567247,0.5255,4598.9,4598.6,0.2966]
[1758202567642,0.5255,4598.9,4598.5,3.2078]
[1758202567945,0.2985,4598.9,4598.5,3.2078]
[1758202568151,0.227,4599.2,4598.6,0.2966]
[1758202568348,3.2078,4599.5,4598.6,0.2966]
[1758202568555,0.227,4599.7,4599.1,3.2078]
[1758202568854,0.2985,4599.2,4598.6,3.2078]
[1758202569042,0.2985,4599.2,4598.6,3.4348]
[1758202571946,0.2985,4599.2,4598.6,3.2078]
[1758202572752,0.2985,4599.3,4598.6,3.5044]
[1758202572947,0.2985,4599.3,4598.6,3.2078]
[1758202573454,0.2985,4599.2,4598.6,3.2078]
[1758202574454,0.226,4599.3,4598.6,3.2078]
[1758202574455,0.122,4599.0,4598.6,3.2078]
[1758202575251,0.2985,4598.9,4598.6,3.2078]
[1758202575450,0.2985,4598.9,4598.3,0.3183]
[1758202575652,0.45,4599.4,4598.6,3.2078]
[1758202575852,0.45,4599.4,4599.1,3.2078]
[1758202576047,0.45,4599.4,4599.2,0.2966]
[1758202576451,0.45,4599.4,4599.1,3.2078]
[1758202577456,0.45,4599.4,4599.2,0.2966]
[1758202577659,0.45,4599.4,4599.1,3.2078]
[1758202577953,0.45,4599.4,4599.2,0.2966]
[1758202578356,0.45,4599.4,4599.3,0.7092]
[1758202578854,10.0,4600.0,4599.3,4.0]
[1758202579059,10.0,4600.0,4599.9,3.2078]
[1758202579250,7.8857,4600.0,4599.9,3.4338]
[1758202579555,5.74717192,4600.0,4599.9,7.65119]
[1758202579752,5.74717192,4600.0,4599.9,7.4338]
[1758202580153,5.74717192,4600.0,4599.9,3.2078]
[1758202580353,5.74717192,4600.0,4599.9,7.4338]
[1758202580658,5.74717192,4600.0,4599.9,3.2078]
[1758202580953,5.74717192,4600.0,4599.9,7.4338]
[1758202581860,5.74717192,4600.0,4599.9,3.4338]
[1758202584456,5.74717192,4600.0,4599.9,7.4338]
[1758202585256,5.74717192,4600.0,4599.9,7.2078]
[1758202585557,5.74717192,4600.0,4599.9,7.4338]
[1758202586063,5.74717192,4600.0,4599.9,3.4338]
[1758202586362,5.74717192,4600.0,4599.9,7.4338]
[1758202587551,5.74717192,4600.0,4599.9,7.2078]
[1758202588054,5.74717192,4600.0,4599.9,7.4338]
[1758202589558,5.74717192,4600.0,4599.9,3.2078]
[1758202589762,0.4205,4599.5,4599.4,3.2078]
[1758202589961,0.4205,4599.5,4599.4,3.4338]
[1758202591461,0.4205,4599.5,4599.4,3.2078]
[1758202591959,0.4205,4599.5,4599.4,3.4338]
[1758202592160,0.4205,4599.5,4599.4,7.4338]
[1758202593066,0.4205,4599.5,4599.4,7.82498]
[1758202593960,5.02817192,4600.0,4599.9,0.39114]
[1758202594267,0.122,4600.5,4600.4,0.3911]
[1758202594563,0.122,4600.5,4600.4,7.8249]
[1758202594764,0.122,4601.0,4600.9,0.39105]
[1758202594969,0.122,4601.0,4600.9,3.82485]
[1758202595361,0.122,4601.0,4600.9,7.82485]
[1758202595561,0.122,4602.0,4601.8,0.39097]
[1758202595755,0.122,4602.0,4601.9,3.4338]
[1758202595968,0.4196,4602.0,4601.9,7.4338]
[1758202596265,1.56447112,4605.2,4602.0,0.97741]
[1758202596566,0.1237,4605.5,4605.1,3.2078]
[1758202596762,0.1237,4605.5,4605.2,0.226]
[1758202597163,0.1237,4605.5,4605.1,3.2078]
[1758202597363,0.1237,4605.5,4605.2,0.227]
[1758202597662,0.1237,4605.5,4605.3,0.09]
[1758202597867,0.1237,4606.0,4605.4,0.317]
[1758202598064,0.1237,4606.0,4605.9,3.2078]
[1758202598263,0.4213,4606.0,4605.9,3.4348]
[1758202598571,0.4213,4606.0,4605.9,3.2078]
[1758202598761,0.4213,4606.0,4605.9,3.4348]
[1758202598958,0.1237,4605.0,4604.7,3.2078]
[1758202599162,0.2976,4604.9,4604.8,0.227]
[1758202599363,0.1237,4604.5,4604.1,3.2078]
[1758202599560,3.2078,4604.8,4604.1,0.227]
[1758202599765,0.1237,4604.5,4604.1,0.227]
[1758202599964,0.2976,4604.4,4604.1,0.227]
[1758202600765,0.2976,4604.4,4604.0,3.2078]
[1758202600965,0.2976,4604.3,4604.1,0.227]
[1758202601363,0.2976,4604.4,4604.1,3.4348]
[1758202601862,0.1237,4604.5,4604.1,3.4348]
[1758202602069,0.2976,4604.4,4604.1,3.2078]
[1758202602364,0.2976,4604.4,4604.2,0.227]
[1758202602873,0.1237,4605.0,4604.4,0.39076]
[1758202603064,0.1237,4605.5,4604.9,3.2078]
[1758202603261,0.1237,4605.5,4605.4,3.2078]
[1758202603465,0.1237,4605.5,4605.4,3.4358]
[1758202604066,0.1237,4605.5,4605.4,3.2078]
[1758202604570,0.1237,4605.5,4605.4,3.4358]
[1758202605159,0.1237,4605.5,4604.1,31.29]
[1758202605160,4.1237,4605.5,4604.7,3.2078]
[1758202605360,0.2976,4604.9,4604.8,0.228]
[1758202606364,0.2976,4606.2,4604.8,4.228]
[1758202606670,0.4213,4606.0,4605.9,3.2078]
[1758202606864,0.4213,4606.0,4605.9,3.4358]
[1758202607872,4.4213,4606.0,4605.9,3.2078]
[1758202608075,0.4213,4605.5,4605.4,3.4358]
[1758202608973,0.1237,4605.0,4604.9,3.2078]
[1758202609281,0.4213,4605.0,4604.9,3.4358]
[1758202609881,0.1237,4605.5,4604.9,3.4358]
[1758202610172,0.4213,4605.5,4605.4,3.2078]
[1758202610370,0.2976,4605.4,4605.2,0.228]
[1758202610571,0.1237,4605.5,4605.2,0.228]
[1758202611071,0.4213,4605.0,4604.3,3.2078]
[1758202611274,0.2976,4604.4,4604.3,3.2078]
[1758202611479,0.2976,4604.4,4604.3,3.4358]
[1758202611868,0.2976,4603.9,4603.7,3.2078]
[1758202612471,0.1237,4604.0,4603.7,3.4358]
[1758202612668,0.2976,4603.9,4603.7,3.4358]
[1758202612869,0.1237,4604.0,4603.7,3.2078]
[1758202613074,0.2976,4603.9,4603.8,0.228]
[1758202613277,0.2976,4603.9,4603.7,3.2078]
[1758202613774,0.1237,4603.5,4603.2,0.228]
[1758202613980,0.2976,4603.4,4603.2,0.228]
[1758202614574,0.2976,4603.4,4602.8,0.228]
[1758202614778,0.2976,4602.9,4602.8,0.2497]
[1758202615779,0.2976,4602.9,4602.8,0.0217]
[1758202616877,0.1237,4601.5,4601.3,3.2078]
[1758202617077,0.2976,4601.4,4601.3,3.2078]
[1758202617277,0.2976,4600.9,4600.6,3.2078]
[1758202617480,0.4213,4601.0,4600.1,3.6104]
[1758202617677,0.4213,4601.0,4600.2,0.228]
[1758202618878,0.4213,4601.0,4600.6,3.2078]
[1758202619072,0.4124,4601.5,4600.6,3.4358]
[1758202620275,0.2887,4600.9,4600.6,0.2497]
[1758202620485,0.2887,4600.4,4599.6,3.2078]
[1758202620678,0.1225,4600.0,4599.6,3.2078]
[1758202620883,0.2887,4600.7,4599.7,0.1954]
[1758202621178,0.1225,4600.0,4599.6,0.228]
[1758202621378,3.7245,4600.8,4599.8,0.1954]
[1758202621578,0.2887,4600.6,4600.3,3.2078]
[1758202621776,0.1225,4601.0,4600.3,3.2078]
[1758202622175,0.2887,4600.9,4600.3,3.2078]
[1758202622580,3.2078,4601.3,4600.3,3.2078]
[1758202622882,0.4124,4601.5,4600.8,3.2078]
[1758202623077,0.4124,4601.5,4600.9,0.228]
[1758202623487,0.1225,4602.0,4601.4,3.2078]
[1758202623781,0.2887,4602.4,4601.9,3.2078]
[1758202624077,0.1225,4602.5,4601.8,0.228]
[1758202624078,0.1225,4602.0,4601.8,0.228]
[1758202624383,0.4112,4602.5,4601.9,3.2078]
[1758202624574,0.1225,4603.0,4602.4,3.2078]
[1758202624780,0.2887,4603.4,4602.5,0.229]
[1758202625878,0.4385,4604.0,4603.3,3.2078]
[1758202626383,0.316,4603.9,4603.3,3.2078]
[1758202628580,0.1225,4604.0,4603.3,3.2078]
[1758202628581,0.316,4603.4,4603.3,3.2078]
[1758202629685,0.4385,4604.0,4603.3,3.2078]
[1758202630280,0.316,4603.9,4603.3,3.2078]
[1758202630587,0.316,4603.4,4603.3,3.2078]
[1758202631389,4.316,4603.4,4603.3,3.2078]
[1758202631686,0.316,4602.9,4602.5,3.2078]
[1758202631981,0.316,4602.9,4602.6,0.1959]
[1758202632188,0.316,4603.4,4602.5,3.2078]
[1758202632487,0.1217,4603.0,4602.5,3.2078]
[1758202632682,0.316,4602.9,4602.5,3.2078]
[1758202633088,0.1217,4603.5,4602.6,0.1959]
[1758202633280,0.316,4603.4,4602.6,0.1959]
[1758202634180,0.316,4603.4,4603.0,3.2078]
[1758202634582,0.1217,4603.5,4603.0,3.2078]
[1758202634880,0.316,4603.4,4603.0,3.2078]
[1758202635683,3.2078,4603.7,4603.1,0.1959]
[1758202635888,0.316,4603.9,4603.1,0.1959]
[1758202637687,3.2078,4604.4,4603.7,0.1959]
[1758202637890,0.228,4604.3,4603.6,3.4037]
[1758202638192,0.316,4604.2,4603.6,3.2078]
[1758202638485,0.316,4604.3,4603.6,3.2078]
[1758202638686,3.4358,4604.4,4603.6,3.2078]
[1758202638990,0.1217,4604.0,4603.0,3.4358]
[1758202639191,0.316,4603.9,4603.0,3.4358]
[1758202639991,0.1217,4604.0,4603.0,3.4358]
[1758202640190,0.316,4603.9,4603.0,3.4358]
[1758202640386,0.3497,4604.0,4603.0,3.4358]
[1758202640692,0.316,4603.9,4603.0,3.4358]
[1758202641788,0.1217,4603.5,4603.0,3.2078]
[1758202641991,0.316,4603.4,4603.0,3.2078]
[1758202642392,0.1217,4603.5,4603.0,3.2078]
[1758202642688,0.316,4603.4,4603.0,3.2078]
[1758202643192,0.1217,4603.5,4603.0,3.2078]
[1758202643394,0.316,4603.4,4602.5,3.2078]
[1758202643588,0.1217,4603.0,4602.5,3.2078]
[1758202643783,0.316,4602.9,4602.5,3.2078]
[1758202643993,0.1217,4603.0,4602.5,3.2078]
[1758202644486,0.1217,4603.5,4602.7,0.1959]
[1758202644683,0.316,4603.4,4603.1,3.2078]
[1758202645288,0.227,4603.6,4603.1,3.2078]
[1758202645497,0.316,4603.8,4603.1,3.2078]
[1758202646491,0.316,4603.8,4603.6,3.2078]
[1758202646688,0.316,4604.6,4603.7,0.1959]
[1758202646890,0.316,4604.6,4604.4,3.2078]
[1758202647087,0.131,4604.9,4603.8,3.4348]
[1758202647284,0.316,4603.9,4603.2,3.2078]
[1758202647783,0.316,4604.4,4603.3,0.1959]
[1758202647983,0.316,4604.4,4603.5,0.1959]
[1758202648192,0.544,4604.9,4604.0,0.1959]
[1758202648384,0.316,4604.7,4604.0,0.1959]
[1758202648585,3.2078,4604.8,4603.4,3.4037]
[1758202648781,0.1217,4603.5,4602.7,3.2078]
[1758202648981,0.1217,4603.5,4601.2,31.285]
[1758202648982,0.316,4603.3,4602.6,3.4037]
[1758202649182,0.316,4603.3,4602.4,3.2078]
[1758202650194,0.316,4603.4,4602.4,3.2078]
[1758202650396,0.316,4603.3,4602.5,0.0217]
[1758202651196,3.2078,4603.8,4603.0,0.1959]
[1758202651495,3.5575,4604.0,4603.0,3.2078]
[1758202651687,0.316,4603.8,4603.0,3.2078]
[1758202651888,0.316,4603.9,4603.0,3.2078]
[1758202652289,0.53959892,4603.8,4603.0,3.4037]
[1758202652490,0.316,4603.9,4603.0,3.4037]
[1758202652794,0.316,4603.7,4603.0,3.4037]
[1758202652989,0.316,4603.4,4603.0,3.2078]
[1758202653196,0.54005169,4603.3,4603.0,3.2078]
[1758202653493,0.316,4603.1,4603.0,3.2078]
[1758202654189,0.316,4603.4,4603.0,3.4037]
[1758202654392,0.316,4603.9,4603.0,3.4037]
[1758202654695,0.5405336,4603.8,4603.0,3.4037]
[1758202654894,0.5405336,4603.7,4603.0,3.4037]
[1758202655090,0.5405336,4603.6,4603.0,3.4037]
[1758202655296,0.316,4603.9,4603.0,3.4037]
[1758202655595,3.6466,4604.5,4603.7,0.196]
[1758202655906,0.54048845,4604.4,4603.7,0.196]
[1758202656099,0.54048845,4604.3,4603.7,0.196]
[1758202656300,0.54048845,4604.2,4603.6,3.4358]
[1758202656495,0.4388,4604.5,4603.7,0.196]
[1758202656797,0.54041281,4604.4,4603.7,0.196]
[1758202656994,0.4388,4604.5,4603.7,0.196]
[1758202657199,0.3171,4604.9,4604.2,3.2078]
[1758202657400,0.54033367,4604.8,4604.2,3.2078]
[1758202657595,0.54033367,4604.7,4604.3,0.196]
[1758202657795,0.3171,4604.4,4604.2,3.2078]
[1758202658194,0.1258,4604.5,4603.8,0.228]
[1758202658392,0.3171,4604.3,4603.6,3.6318]
[1758202658693,0.3171,4603.9,4603.6,3.2078]
[1758202658896,0.54036804,4603.8,4602.8,3.2078]
[1758202659092,0.1258,4603.0,4602.8,3.2078]
[1758202659292,0.3171,4602.9,4602.8,3.2078]
[1758202660795,0.1258,4603.0,4602.6,0.228]
[1758202660993,0.1258,4603.5,4602.7,0.196]
[1758202661298,0.1258,4604.0,4603.4,3.2078]
[1758202661495,0.3171,4603.7,4603.4,3.2078]
[1758202661696,0.1258,4604.0,4603.4,3.2078]
[1758202661900,3.2078,4604.1,4603.4,3.2078]
[1758202662093,0.4429,4604.5,4603.9,3.2078]
[1758202662299,0.54019853,4604.4,4603.9,3.2078]
[1758202662596,0.3171,4604.2,4603.5,0.424]
[1758202662792,0.1258,4604.5,4603.9,3.2078]
[1758202662997,0.3171,4604.3,4603.9,3.2078]
[1758202663198,0.3171,4604.1,4603.9,3.2078]
[1758202663408,0.1258,4604.5,4603.9,3.2078]
[1758202663592,0.3171,4604.3,4603.9,3.2078]
[1758202663799,0.1258,4604.5,4603.9,3.4038]
[1758202664006,0.54018554,4604.4,4603.9,3.2078]
[1758202664303,0.3171,4604.0,4603.9,3.2078]
[1758202664495,0.4429,4604.0,4603.9,3.2078]
[1758202665004,0.4429,4604.5,4603.9,3.2078]
[1758202665196,0.3171,4604.3,4603.9,3.2078]
[1758202665395,0.3171,4604.2,4603.9,3.2078]
[1758202665903,0.3171,4604.4,4603.9,3.2078]
[1758202666301,0.4429,4604.0,4603.9,3.2078]
[1758202667593,0.3171,4604.7,4603.9,3.2078]
[1758202667799,0.3171,4604.7,4604.5,0.196]
[1758202668000,0.3171,4604.7,4604.4,3.2078]
[1758202668001,3.2078,4605.4,4604.4,3.2078]
[1758202668304,0.3171,4605.3,4604.5,0.196]
[1758202668499,0.3171,4605.3,4604.6,0.227]
[1758202668705,0.53987607,4605.2,4604.6,0.227]
[1758202668904,0.3171,4605.3,4604.6,0.227]
[1758202669704,3.2078,4605.4,4604.7,0.196]
[1758202670009,0.3171,4605.3,4604.7,0.196]
[1758202671111,0.3171,4605.3,4604.6,0.227]
[1758202673912,0.3171,4605.3,4604.6,0.423]
[1758202674805,0.1258,4605.5,4604.6,0.227]
[1758202675108,0.3171,4604.9,4604.6,0.227]
[1758202675317,0.4429,4604.5,4604.4,3.2078]
[1758202675610,0.1258,4604.0,4603.9,3.2078]
[1758202675813,0.4429,4604.0,4603.9,3.2078]
[1758202676508,0.3171,4603.9,4603.5,0.0217]
[1758202676810,0.1258,4604.0,4603.5,0.0217]
[1758202677508,0.1258,4604.5,4603.9,3.2078]
[1758202678210,0.294,4604.4,4603.9,3.2078]